[Event "Titled Tuesday Blitz January 25 2022"]
[White "Brodowski, Piotr"]
[Black "Shipov, Sergei"]
[WhiteFideId "1124480"]
[BlackFideId "4113624"]
[WhiteElo "2422"]
[BlackElo "2769"]
[Result "0-1"]
[Round "11"]
[TimeControl "180+1"]
[Date "2022.01.26"]
[WhiteClock "0:00:01"]
[BlackClock "0:01:25"]

1. c4 {[%clk 0:03:00]}  Nf6 {[%clk 0:02:59]} 2. Nc3 {[%clk 0:03:00]}  c5 {[%clk 0:03:00]} 3. Nf3 {[%clk 0:02:56]}  e6 {[%clk 0:02:59]} 4. g3 {[%clk 0:02:48]}  b6 {[%clk 0:02:59]} 5. Bg2 {[%clk 0:02:48]}  Bb7 {[%clk 0:02:59]} 6. O-O {[%clk 0:02:47]}  Be7 {[%clk 0:03:00]} 7. d4 {[%clk 0:02:22]}  cxd4 {[%clk 0:03:01]} 8. Qxd4 {[%clk 0:02:22]}  d6 {[%clk 0:03:01]} 9. b3 {[%clk 0:02:19]}  O-O {[%clk 0:03:00]} 10. Bb2 {[%clk 0:02:19]}  Nbd7 {[%clk 0:02:59]} 11. Rad1 {[%clk 0:02:16]}  a6 {[%clk 0:02:59]} 12. e4 {[%clk 0:02:15]}  Qc7 {[%clk 0:02:57]} 13. Rfe1 {[%clk 0:02:14]}  Rfe8 {[%clk 0:02:55]} 14. h3 {[%clk 0:02:14]}  Rac8 {[%clk 0:02:54]} 15. Qe3 {[%clk 0:02:13]}  Bf8 {[%clk 0:02:51]} 16. Rc1 {[%clk 0:02:04]}  Qb8 {[%clk 0:02:51]} 17. Qd2 {[%clk 0:01:49]}  Qa8 {[%clk 0:02:49]} 18. Nd4 {[%clk 0:01:38]}  g6 {[%clk 0:02:45]} 19. a4 {[%clk 0:00:41]}  Nc5 {[%clk 0:02:40]} 20. b4 {[%clk 0:00:30]}  Ncxe4 {[%clk 0:02:37]} 21. Nxe4 {[%clk 0:00:30]}  Nxe4 {[%clk 0:02:37]} 22. Qd3 {[%clk 0:00:10]}  Ng5 {[%clk 0:02:20]} 23. Bxb7 {[%clk 0:00:07]}  Qxb7 {[%clk 0:02:21]} 24. Qf1 {[%clk 0:00:03]}  e5 {[%clk 0:02:21]} 25. h4 {[%clk 0:00:03]}  Ne4 {[%clk 0:02:18]} 26. Nf3 {[%clk 0:00:02]}  Bh6 {[%clk 0:02:14]} 27. Rcd1 {[%clk 0:00:02]}  b5 {[%clk 0:02:14]} 28. cxb5 {[%clk 0:00:01]}  axb5 {[%clk 0:02:15]} 29. Qxb5 {[%clk 0:00:01]}  Qxb5 {[%clk 0:02:15]} 30. axb5 {[%clk 0:00:02]}  Rc2 {[%clk 0:02:15]} 31. Bc1 {[%clk 0:00:02]}  Rxc1 {[%clk 0:01:59]} 32. Rxc1 {[%clk 0:00:03]}  Bxc1 {[%clk 0:01:59]} 33. Rxe4 {[%clk 0:00:04]}  Rb8 {[%clk 0:01:58]} 34. Rc4 {[%clk 0:00:04]}  Ba3 {[%clk 0:01:57]} 35. Rc6 {[%clk 0:00:03]}  Bxb4 {[%clk 0:01:56]} 36. b6 {[%clk 0:00:03]}  Bc5 {[%clk 0:01:57]} 37. Nxe5 {[%clk 0:00:04]}  Rxb6 {[%clk 0:01:57]} 38. Rc8+ {[%clk 0:00:03]}  Kg7 {[%clk 0:01:57]} 39. Nd7 {[%clk 0:00:03]}  Rb1+ {[%clk 0:01:57]} 40. Kg2 {[%clk 0:00:03]}  Bd4 {[%clk 0:01:57]} 41. Rc4 {[%clk 0:00:03]}  Rd1 {[%clk 0:01:57]} 42. Kf3 {[%clk 0:00:02]}  d5 {[%clk 0:01:56]} 43. Ra4 {[%clk 0:00:02]}  Rd2 {[%clk 0:01:56]} 44. Kg4 {[%clk 0:00:01]}  h5+ {[%clk 0:01:56]} 45. Kh3 {[%clk 0:00:01]}  Bxf2 {[%clk 0:01:56]} 46. Ne5 {[%clk 0:00:01]}  Bg1 {[%clk 0:01:56]} 47. g4 {[%clk 0:00:01]}  hxg4+ {[%clk 0:01:53]} 48. Kxg4 {[%clk 0:00:02]}  Rd4+ {[%clk 0:01:50]} 49. Rxd4 {[%clk 0:00:02]}  Bxd4 {[%clk 0:01:50]} 50. Nf3 {[%clk 0:00:02]}  Be3 {[%clk 0:01:49]} 51. h5 {[%clk 0:00:01]}  Kf6 {[%clk 0:01:50]} 52. hxg6 {[%clk 0:00:01]}  fxg6 {[%clk 0:01:50]} 53. Ne1 {[%clk 0:00:02]}  Ke5 {[%clk 0:01:50]} 54. Kf3 {[%clk 0:00:02]}  Bh6 {[%clk 0:01:47]} 55. Nd3+ {[%clk 0:00:02]}  Kd4 {[%clk 0:01:48]} 56. Nf2 {[%clk 0:00:03]}  Kc3 {[%clk 0:01:47]} 57. Ng4 {[%clk 0:00:02]}  Bg7 {[%clk 0:01:46]} 58. Ke2 {[%clk 0:00:02]}  d4 {[%clk 0:01:44]} 59. Nf2 {[%clk 0:00:02]}  Be5 {[%clk 0:01:44]} 60. Ne4+ {[%clk 0:00:03]}  Kc4 {[%clk 0:01:44]} 61. Nd2+ {[%clk 0:00:03]}  Kd5 {[%clk 0:01:44]} 62. Nf3 {[%clk 0:00:03]}  Bf4 {[%clk 0:01:43]} 63. Kd3 {[%clk 0:00:04]}  Be3 {[%clk 0:01:42]} 64. Nh4 {[%clk 0:00:04]}  g5 {[%clk 0:01:41]} 65. Nf5 {[%clk 0:00:05]}  Bf2 {[%clk 0:01:40]} 66. Ke2 {[%clk 0:00:05]}  Ke5 {[%clk 0:01:40]} 67. Ne7 {[%clk 0:00:05]}  Be3 {[%clk 0:01:40]} 68. Nc6+ {[%clk 0:00:04]}  Ke4 {[%clk 0:01:40]} 69. Nb4 {[%clk 0:00:03]}  g4 {[%clk 0:01:40]} 70. Nd3 {[%clk 0:00:04]}  g3 {[%clk 0:01:41]} 71. Ne1 {[%clk 0:00:04]}  Bf2 {[%clk 0:01:37]} 72. Nd3 {[%clk 0:00:05]}  Be3 {[%clk 0:01:28]} 73. Ne1 {[%clk 0:00:05]}  Bg5 {[%clk 0:01:28]} 74. Nd3 {[%clk 0:00:04]}  g2 {[%clk 0:01:25]} 75. Nf2+ {[%clk 0:00:04]}  Kd5 {[%clk 0:01:25]} 76. Nh3 {[%clk 0:00:03]}  Be3 {[%clk 0:01:25]} 77. Kd3 {[%clk 0:00:01]}  g1=Q {[%clk 0:01:25]} 0-1


[Site "https://www.chess.com"]

[Event "Titled Tuesday Blitz January 25 2022"]
[White "Brunner, Nicolas"]
[Black "Kekic, Armin"]
[WhiteFideId "620246"]
[BlackFideId "14401274"]
[WhiteElo "2372"]
[BlackElo "2156"]
[Result "1-0"]
[Round "11"]
[TimeControl "180+1"]
[Date "2022.01.26"]
[WhiteClock "0:01:53"]
[BlackClock "0:01:03"]

1. d4 {[%clk 0:02:56]}  d6 {[%clk 0:02:56]} 2. e4 {[%clk 0:02:55]}  e5 {[%clk 0:02:56]} 3. Nf3 {[%clk 0:02:54]}  Nd7 {[%clk 0:02:53]} 4. Nc3 {[%clk 0:02:53]}  Ngf6 {[%clk 0:02:52]} 5. Bc4 {[%clk 0:02:52]}  exd4 {[%clk 0:02:46]} 6. Nxd4 {[%clk 0:02:34]}  Nc5 {[%clk 0:02:40]} 7. O-O {[%clk 0:02:32]}  Be7 {[%clk 0:02:40]} 8. f3 {[%clk 0:02:29]}  O-O {[%clk 0:02:39]} 9. a3 {[%clk 0:02:26]}  c6 {[%clk 0:02:38]} 10. Ba2 {[%clk 0:02:25]}  Qc7 {[%clk 0:02:35]} 11. Kh1 {[%clk 0:02:23]}  Ne6 {[%clk 0:02:26]} 12. Nf5 {[%clk 0:02:22]}  Re8 {[%clk 0:02:23]} 13. g4 {[%clk 0:02:20]}  Bf8 {[%clk 0:02:19]} 14. g5 {[%clk 0:02:19]}  Nd7 {[%clk 0:02:19]} 15. f4 {[%clk 0:02:16]}  Ndc5 {[%clk 0:02:09]} 16. Qf3 {[%clk 0:02:12]}  Nd8 {[%clk 0:02:04]} 17. Ng3 {[%clk 0:02:03]}  Nde6 {[%clk 0:01:20]} 18. f5 {[%clk 0:02:02]}  Nd4 {[%clk 0:01:18]} 19. Qf2 {[%clk 0:02:02]}  Nb5 {[%clk 0:01:18]} 20. Nxb5 {[%clk 0:01:58]}  cxb5 {[%clk 0:01:19]} 21. g6 {[%clk 0:01:56]}  hxg6 {[%clk 0:01:03]} 22. fxg6 {[%clk 0:01:55]}  Be6 {[%clk 0:01:03]} 23. gxf7+ {[%clk 0:01:53]} 1-0


[Site "https://www.chess.com"]

[Event "Titled Tuesday Blitz January 25 2022"]
[White "Bryakin, Mikhail"]
[Black "Pavlidou, Ekaterini"]
[WhiteFideId "4165314"]
[BlackFideId "4213262"]
[WhiteElo "2421"]
[BlackElo "2127"]
[Result "0-1"]
[Round "11"]
[TimeControl "180+1"]
[Date "2022.01.26"]
[WhiteClock "0:00:03"]
[BlackClock "0:00:05"]

1. e4 {[%clk 0:02:56]}  c5 {[%clk 0:02:59]} 2. Nc3 {[%clk 0:02:50]}  Nc6 {[%clk 0:02:55]} 3. g3 {[%clk 0:02:50]}  g6 {[%clk 0:02:53]} 4. Bg2 {[%clk 0:02:51]}  Bg7 {[%clk 0:02:54]} 5. Nf3 {[%clk 0:02:51]}  d6 {[%clk 0:02:54]} 6. d3 {[%clk 0:02:51]}  e5 {[%clk 0:02:54]} 7. O-O {[%clk 0:02:35]}  h6 {[%clk 0:02:54]} 8. a4 {[%clk 0:02:25]}  Nge7 {[%clk 0:02:54]} 9. Nd2 {[%clk 0:02:25]}  Be6 {[%clk 0:02:53]} 10. Nc4 {[%clk 0:02:25]}  O-O {[%clk 0:02:52]} 11. Ne3 {[%clk 0:02:23]}  Qd7 {[%clk 0:02:46]} 12. Ncd5 {[%clk 0:02:22]}  f5 {[%clk 0:02:44]} 13. Bd2 {[%clk 0:02:15]}  f4 {[%clk 0:02:43]} 14. Nxe7+ {[%clk 0:02:15]}  Nxe7 {[%clk 0:02:40]} 15. Nd5 {[%clk 0:02:16]}  Nxd5 {[%clk 0:02:37]} 16. exd5 {[%clk 0:02:16]}  Bg4 {[%clk 0:02:35]} 17. f3 {[%clk 0:02:16]}  Bh3 {[%clk 0:02:34]} 18. g4 {[%clk 0:02:16]}  Bxg2 {[%clk 0:02:32]} 19. Kxg2 {[%clk 0:02:17]}  e4 {[%clk 0:02:19]} 20. dxe4 {[%clk 0:02:16]}  Bxb2 {[%clk 0:02:18]} 21. Rb1 {[%clk 0:02:17]}  Be5 {[%clk 0:02:18]} 22. c4 {[%clk 0:02:13]}  Rf7 {[%clk 0:02:15]} 23. h4 {[%clk 0:02:13]}  h5 {[%clk 0:02:10]} 24. g5 {[%clk 0:02:10]}  Re8 {[%clk 0:01:44]} 25. Qb3 {[%clk 0:02:09]}  Bd4 {[%clk 0:01:39]} 26. Qc2 {[%clk 0:01:58]}  Re5 {[%clk 0:01:38]} 27. a5 {[%clk 0:01:56]}  Qd8 {[%clk 0:01:35]} 28. Be1 {[%clk 0:01:34]}  Qc8 {[%clk 0:01:19]} 29. Bf2 {[%clk 0:01:25]}  Rc7 {[%clk 0:01:04]} 30. Rfd1 {[%clk 0:01:19]}  Bxf2 {[%clk 0:01:02]} 31. Qxf2 {[%clk 0:01:20]}  Rf7 {[%clk 0:00:59]} 32. Qb2 {[%clk 0:01:20]}  Rxe4 {[%clk 0:00:52]} 33. fxe4 {[%clk 0:01:19]}  f3+ {[%clk 0:00:48]} 34. Kh2 {[%clk 0:01:09]}  f2 {[%clk 0:00:37]} 35. Rf1 {[%clk 0:00:46]}  Qg4 {[%clk 0:00:36]} 36. Rxf2 {[%clk 0:00:44]}  Qxh4+ {[%clk 0:00:37]} 37. Kg1 {[%clk 0:00:45]}  Qg3+ {[%clk 0:00:28]} 38. Rg2 {[%clk 0:00:45]}  Qe3+ {[%clk 0:00:26]} 39. Kh1 {[%clk 0:00:45]}  Rf3 {[%clk 0:00:22]} 40. Rbg1 {[%clk 0:00:10]}  Qxe4 {[%clk 0:00:18]} 41. Rd1 {[%clk 0:00:04]}  Rh3+ {[%clk 0:00:12]} 42. Kg1 {[%clk 0:00:04]}  Qh4 {[%clk 0:00:10]} 43. Rh2 {[%clk 0:00:02]}  Qg4+ {[%clk 0:00:08]} 44. Rg2 {[%clk 0:00:02]}  Qxd1+ {[%clk 0:00:07]} 45. Kf2 {[%clk 0:00:03]}  Rf3# {[%clk 0:00:05]} 0-1


[Site "https://www.chess.com"]

[Event "Titled Tuesday Blitz January 25 2022"]
[White "Cherniaiev, Tykhon"]
[Black "Moskalenko, Alexander"]
[WhiteFideId "14182360"]
[BlackFideId "4155351"]
[WhiteElo "2289"]
[BlackElo "2515"]
[Result "1-0"]
[Round "11"]
[TimeControl "180+1"]
[Date "2022.01.26"]
[WhiteClock "0:00:09"]
[BlackClock "0:00:06"]

1. Nf3 {[%clk 0:03:00]}  d6 {[%clk 0:02:57]} 2. d4 {[%clk 0:03:00]}  g6 {[%clk 0:02:58]} 3. b3 {[%clk 0:03:00]}  Bg7 {[%clk 0:02:59]} 4. Bb2 {[%clk 0:03:00]}  f5 {[%clk 0:02:59]} 5. c4 {[%clk 0:03:00]}  Nf6 {[%clk 0:03:00]} 6. Nc3 {[%clk 0:03:00]}  O-O {[%clk 0:03:01]} 7. g3 {[%clk 0:03:00]}  c6 {[%clk 0:03:01]} 8. Bg2 {[%clk 0:03:01]}  Qe8 {[%clk 0:02:55]} 9. O-O {[%clk 0:03:01]}  e5 {[%clk 0:02:55]} 10. dxe5 {[%clk 0:02:58]}  dxe5 {[%clk 0:02:56]} 11. e4 {[%clk 0:02:18]}  f4 {[%clk 0:02:55]} 12. gxf4 {[%clk 0:02:07]}  Nh5 {[%clk 0:02:55]} 13. Ne2 {[%clk 0:01:54]}  Nxf4 {[%clk 0:02:54]} 14. Nxf4 {[%clk 0:01:53]}  Rxf4 {[%clk 0:02:54]} 15. Qd6 {[%clk 0:01:41]}  Nd7 {[%clk 0:02:45]} 16. Rad1 {[%clk 0:01:40]}  Rf6 {[%clk 0:02:42]} 17. Qd2 {[%clk 0:01:37]}  Rf8 {[%clk 0:02:26]} 18. Qd6 {[%clk 0:01:33]}  Rf6 {[%clk 0:01:35]} 19. Qd2 {[%clk 0:01:32]}  a5 {[%clk 0:01:02]} 20. a3 {[%clk 0:01:19]}  Rf4 {[%clk 0:00:58]} 21. Qd6 {[%clk 0:01:17]}  Qf8 {[%clk 0:00:58]} 22. Qe6+ {[%clk 0:01:07]}  Kh8 {[%clk 0:00:55]} 23. Ng5 {[%clk 0:00:38]}  Nc5 {[%clk 0:00:55]} 24. Qd6 {[%clk 0:00:36]}  Qxd6 {[%clk 0:00:46]} 25. Rxd6 {[%clk 0:00:37]}  Kg8 {[%clk 0:00:47]} 26. Rd8+ {[%clk 0:00:32]}  Rf8 {[%clk 0:00:47]} 27. Rfd1 {[%clk 0:00:32]}  Bg4 {[%clk 0:00:42]} 28. Rxf8+ {[%clk 0:00:31]}  Rxf8 {[%clk 0:00:40]} 29. f3 {[%clk 0:00:32]}  Bc8 {[%clk 0:00:40]} 30. b4 {[%clk 0:00:26]}  axb4 {[%clk 0:00:40]} 31. axb4 {[%clk 0:00:26]}  Na4 {[%clk 0:00:34]} 32. Ba1 {[%clk 0:00:26]}  Bf6 {[%clk 0:00:32]} 33. Nh3 {[%clk 0:00:24]}  Be6 {[%clk 0:00:32]} 34. c5 {[%clk 0:00:24]}  b6 {[%clk 0:00:18]} 35. cxb6 {[%clk 0:00:22]}  Nxb6 {[%clk 0:00:19]} 36. Nf2 {[%clk 0:00:22]}  Nc4 {[%clk 0:00:18]} 37. Re1 {[%clk 0:00:14]}  Rb8 {[%clk 0:00:17]} 38. Bc3 {[%clk 0:00:14]}  Bg5 {[%clk 0:00:15]} 39. Nd3 {[%clk 0:00:12]}  Be3+ {[%clk 0:00:15]} 40. Kh1 {[%clk 0:00:12]}  Bd4 {[%clk 0:00:15]} 41. Rc1 {[%clk 0:00:09]}  Bxc3 {[%clk 0:00:12]} 42. Rxc3 {[%clk 0:00:10]}  Bf7 {[%clk 0:00:09]} 43. Bf1 {[%clk 0:00:10]}  c5 {[%clk 0:00:09]} 44. Nxc5 {[%clk 0:00:07]}  Rxb4 {[%clk 0:00:08]} 45. Bxc4 {[%clk 0:00:08]}  Bxc4 {[%clk 0:00:08]} 46. Nd7 {[%clk 0:00:06]}  Rb1+ {[%clk 0:00:07]} 47. Kg2 {[%clk 0:00:07]}  Bf1+ {[%clk 0:00:05]} 48. Kf2 {[%clk 0:00:07]}  Rb2+ {[%clk 0:00:06]} 49. Kxf1 {[%clk 0:00:07]}  Rxh2 {[%clk 0:00:06]} 50. Nxe5 {[%clk 0:00:08]}  Kg7 {[%clk 0:00:06]} 51. Rc7+ {[%clk 0:00:07]}  Kg8 {[%clk 0:00:07]} 52. Ng4 {[%clk 0:00:08]}  Ra2 {[%clk 0:00:06]} 53. Nf6+ {[%clk 0:00:08]}  Kf8 {[%clk 0:00:06]} 54. Nxh7+ {[%clk 0:00:09]}  Ke8 {[%clk 0:00:07]} 55. Nf6+ {[%clk 0:00:09]}  Kf8 {[%clk 0:00:06]} 56. e5 {[%clk 0:00:09]}  Ra3 {[%clk 0:00:04]} 57. Kf2 {[%clk 0:00:09]}  Ra2+ {[%clk 0:00:04]} 58. Kg3 {[%clk 0:00:09]}  Ra1 {[%clk 0:00:05]} 59. e6 {[%clk 0:00:09]}  Re1 {[%clk 0:00:06]} 60. Rf7# {[%clk 0:00:09]} 1-0


[Site "https://www.chess.com"]

[Event "Titled Tuesday Blitz January 25 2022"]
[White "Costachi, Mihnea"]
[Black "Gunina, Valentina"]
[WhiteFideId "1217518"]
[BlackFideId "4167570"]
[WhiteElo "2464"]
[BlackElo "2465"]
[Result "1-0"]
[Round "11"]
[TimeControl "180+1"]
[Date "2022.01.26"]
[WhiteClock "0:00:08"]
[BlackClock "0:00:11"]

1. e4 {[%clk 0:03:00]}  c6 {[%clk 0:02:59]} 2. Nf3 {[%clk 0:02:59]}  d5 {[%clk 0:02:59]} 3. d3 {[%clk 0:02:56]}  Qc7 {[%clk 0:02:58]} 4. Nc3 {[%clk 0:02:55]}  dxe4 {[%clk 0:02:58]} 5. dxe4 {[%clk 0:02:52]}  e5 {[%clk 0:02:58]} 6. h3 {[%clk 0:02:50]}  h6 {[%clk 0:02:55]} 7. a3 {[%clk 0:02:50]}  Nf6 {[%clk 0:02:33]} 8. Bc4 {[%clk 0:02:50]}  b5 {[%clk 0:02:31]} 9. Bb3 {[%clk 0:02:49]}  Bc5 {[%clk 0:02:31]} 10. Qe2 {[%clk 0:02:48]}  a5 {[%clk 0:02:30]} 11. Be3 {[%clk 0:02:48]}  Na6 {[%clk 0:02:28]} 12. O-O {[%clk 0:02:44]}  O-O {[%clk 0:02:27]} 13. Rfd1 {[%clk 0:02:42]}  Qe7 {[%clk 0:02:25]} 14. Bxc5 {[%clk 0:02:41]}  Nxc5 {[%clk 0:02:25]} 15. Ba2 {[%clk 0:02:36]}  Be6 {[%clk 0:02:25]} 16. Bxe6 {[%clk 0:02:36]}  Nxe6 {[%clk 0:02:25]} 17. Qe3 {[%clk 0:02:29]}  Nf4 {[%clk 0:02:25]} 18. Ne2 {[%clk 0:02:29]}  N6h5 {[%clk 0:02:24]} 19. Kh2 {[%clk 0:02:22]}  Rfd8 {[%clk 0:02:18]} 20. g3 {[%clk 0:02:20]}  Nxe2 {[%clk 0:02:14]} 21. Qxe2 {[%clk 0:02:21]}  Nf6 {[%clk 0:02:14]} 22. Qe3 {[%clk 0:02:18]}  Qe6 {[%clk 0:02:12]} 23. b3 {[%clk 0:02:14]}  a4 {[%clk 0:02:10]} 24. Rxd8+ {[%clk 0:02:02]}  Rxd8 {[%clk 0:02:09]} 25. bxa4 {[%clk 0:02:03]}  bxa4 {[%clk 0:02:10]} 26. Rb1 {[%clk 0:02:03]}  Qc4 {[%clk 0:02:08]} 27. Nxe5 {[%clk 0:02:03]}  Qxc2 {[%clk 0:02:08]} 28. Rc1 {[%clk 0:01:55]}  Qxe4 {[%clk 0:02:08]} 29. Qxe4 {[%clk 0:01:38]}  Nxe4 {[%clk 0:02:07]} 30. Rc2 {[%clk 0:01:39]}  c5 {[%clk 0:02:03]} 31. Kg2 {[%clk 0:01:37]}  Rd5 {[%clk 0:02:00]} 32. Nc4 {[%clk 0:01:35]}  Rd3 {[%clk 0:01:56]} 33. f3 {[%clk 0:01:31]}  Ng5 {[%clk 0:01:49]} 34. Ne5 {[%clk 0:01:15]}  Rxa3 {[%clk 0:01:47]} 35. Rxc5 {[%clk 0:01:16]}  Ra2+ {[%clk 0:01:47]} 36. Kf1 {[%clk 0:01:16]}  Nxh3 {[%clk 0:01:44]} 37. Rc8+ {[%clk 0:01:17]}  Kh7 {[%clk 0:01:43]} 38. Nxf7 {[%clk 0:01:17]}  Rf2+ {[%clk 0:01:43]} 39. Ke1 {[%clk 0:01:18]}  Rxf3 {[%clk 0:01:42]} 40. Rh8+ {[%clk 0:01:18]}  Kg6 {[%clk 0:01:42]} 41. Ne5+ {[%clk 0:01:19]}  Kf5 {[%clk 0:01:42]} 42. Nxf3 {[%clk 0:01:20]}  Kg4 {[%clk 0:01:42]} 43. Ne5+ {[%clk 0:01:17]}  Kxg3 {[%clk 0:01:42]} 44. Ra8 {[%clk 0:01:17]}  g5 {[%clk 0:01:36]} 45. Rxa4 {[%clk 0:01:16]}  h5 {[%clk 0:01:36]} 46. Ra3+ {[%clk 0:01:14]}  Kg2 {[%clk 0:01:36]} 47. Ra2+ {[%clk 0:01:09]}  Kg3 {[%clk 0:01:35]} 48. Kf1 {[%clk 0:01:04]}  g4 {[%clk 0:01:34]} 49. Ng6 {[%clk 0:01:00]}  Ng5 {[%clk 0:01:28]} 50. Rg2+ {[%clk 0:00:51]}  Kh3 {[%clk 0:01:25]} 51. Nf4+ {[%clk 0:00:38]}  Kh4 {[%clk 0:01:25]} 52. Ra2 {[%clk 0:00:37]}  g3 {[%clk 0:00:53]} 53. Kg2 {[%clk 0:00:34]}  Kg4 {[%clk 0:00:42]} 54. Ra4 {[%clk 0:00:33]}  Kf5 {[%clk 0:00:35]} 55. Nh3 {[%clk 0:00:30]}  Ne4 {[%clk 0:00:33]} 56. Ra5+ {[%clk 0:00:29]}  Kg4 {[%clk 0:00:30]} 57. Ra8 {[%clk 0:00:21]}  h4 {[%clk 0:00:25]} 58. Rf8 {[%clk 0:00:21]}  Nc3 {[%clk 0:00:22]} 59. Rf4+ {[%clk 0:00:20]}  Kh5 {[%clk 0:00:22]} 60. Rc4 {[%clk 0:00:19]}  Nd1 {[%clk 0:00:20]} 61. Kf3 {[%clk 0:00:17]}  Nb2 {[%clk 0:00:18]} 62. Rd4 {[%clk 0:00:17]}  Kg6 {[%clk 0:00:15]} 63. Rxh4 {[%clk 0:00:16]}  Nd3 {[%clk 0:00:15]} 64. Kxg3 {[%clk 0:00:16]}  Kf5 {[%clk 0:00:15]} 65. Kf3 {[%clk 0:00:14]}  Ne5+ {[%clk 0:00:14]} 66. Ke2 {[%clk 0:00:14]}  Ng6 {[%clk 0:00:13]} 67. Ra4 {[%clk 0:00:12]}  Ne5 {[%clk 0:00:13]} 68. Nf2 {[%clk 0:00:12]}  Nc6 {[%clk 0:00:12]} 69. Nd3 {[%clk 0:00:12]}  Ke6 {[%clk 0:00:11]} 70. Ke3 {[%clk 0:00:12]}  Kd5 {[%clk 0:00:10]} 71. Rh4 {[%clk 0:00:11]}  Ne7 {[%clk 0:00:10]} 72. Rh5+ {[%clk 0:00:12]}  Ke6 {[%clk 0:00:10]} 73. Ke4 {[%clk 0:00:12]}  Ng8 {[%clk 0:00:10]} 74. Nf4+ {[%clk 0:00:12]}  Kf7 {[%clk 0:00:11]} 75. Ra5 {[%clk 0:00:11]}  Nf6+ {[%clk 0:00:11]} 76. Kf5 {[%clk 0:00:11]}  Nd7 {[%clk 0:00:11]} 77. Nd5 {[%clk 0:00:08]} 1-0


[Site "https://www.chess.com"]

[Event "Titled Tuesday Blitz January 25 2022"]
[White "Dastan, Muhammed Batuhan"]
[Black "Tregubov, Pavel V."]
[WhiteFideId "6300014"]
[BlackFideId "4115341"]
[WhiteElo "2410"]
[BlackElo "2341"]
[Result "1-0"]
[Round "11"]
[TimeControl "180+1"]
[Date "2022.01.26"]
[WhiteClock "0:00:23"]
[BlackClock "0:00:06"]

1. d4 {[%clk 0:03:00]}  Nf6 {[%clk 0:02:59]} 2. c4 {[%clk 0:03:00]}  e6 {[%clk 0:02:59]} 3. Nc3 {[%clk 0:03:01]}  Bb4 {[%clk 0:03:00]} 4. Qc2 {[%clk 0:03:01]}  c5 {[%clk 0:02:59]} 5. dxc5 {[%clk 0:02:59]}  O-O {[%clk 0:02:58]} 6. Nf3 {[%clk 0:02:58]}  Na6 {[%clk 0:02:58]} 7. g3 {[%clk 0:02:58]}  Nxc5 {[%clk 0:02:58]} 8. Bg2 {[%clk 0:02:59]}  Nce4 {[%clk 0:02:58]} 9. O-O {[%clk 0:02:59]}  Bxc3 {[%clk 0:02:59]} 10. bxc3 {[%clk 0:03:00]}  d5 {[%clk 0:02:59]} 11. cxd5 {[%clk 0:02:56]}  exd5 {[%clk 0:02:59]} 12. Be3 {[%clk 0:02:33]}  Bf5 {[%clk 0:02:49]} 13. Qb3 {[%clk 0:02:29]}  Rc8 {[%clk 0:02:45]} 14. Qxb7 {[%clk 0:02:21]}  Nxc3 {[%clk 0:02:40]} 15. Nd4 {[%clk 0:02:21]}  Rc7 {[%clk 0:02:31]} 16. Qb3 {[%clk 0:02:10]}  Be4 {[%clk 0:02:30]} 17. f3 {[%clk 0:02:05]}  Bg6 {[%clk 0:02:27]} 18. Rac1 {[%clk 0:02:05]}  Qc8 {[%clk 0:02:25]} 19. Bd2 {[%clk 0:02:03]}  Nb1 {[%clk 0:02:05]} 20. Rxb1 {[%clk 0:01:52]}  Bxb1 {[%clk 0:02:05]} 21. Rxb1 {[%clk 0:01:53]}  Nd7 {[%clk 0:01:56]} 22. Qxd5 {[%clk 0:01:49]}  Nb6 {[%clk 0:01:54]} 23. Qf5 {[%clk 0:01:46]}  Qd8 {[%clk 0:01:38]} 24. Be3 {[%clk 0:01:46]}  Re8 {[%clk 0:01:33]} 25. Bf2 {[%clk 0:01:45]}  Nc4 {[%clk 0:01:33]} 26. e4 {[%clk 0:01:38]}  Na3 {[%clk 0:01:26]} 27. Rd1 {[%clk 0:01:31]}  Nc2 {[%clk 0:01:22]} 28. Rd2 {[%clk 0:01:13]}  Nxd4 {[%clk 0:01:19]} 29. Rxd4 {[%clk 0:01:14]}  Rc1+ {[%clk 0:01:19]} 30. Bf1 {[%clk 0:01:14]}  Qb8 {[%clk 0:01:09]} 31. Kg2 {[%clk 0:01:00]}  Rc2 {[%clk 0:01:07]} 32. Qb5 {[%clk 0:00:43]}  Rxa2 {[%clk 0:00:54]} 33. Qxb8 {[%clk 0:00:43]}  Rxb8 {[%clk 0:00:53]} 34. Bc4 {[%clk 0:00:44]}  Rc2 {[%clk 0:00:51]} 35. g4 {[%clk 0:00:33]}  h5 {[%clk 0:00:50]} 36. Kg3 {[%clk 0:00:27]}  h4+ {[%clk 0:00:50]} 37. Kxh4 {[%clk 0:00:22]}  Rxf2 {[%clk 0:00:51]} 38. Kg3 {[%clk 0:00:23]}  Rfb2 {[%clk 0:00:45]} 39. Rd7 {[%clk 0:00:21]}  R2b7 {[%clk 0:00:44]} 40. Rd6 {[%clk 0:00:20]}  a5 {[%clk 0:00:34]} 41. Ra6 {[%clk 0:00:19]}  Rc7 {[%clk 0:00:33]} 42. Bd5 {[%clk 0:00:19]}  Rb5 {[%clk 0:00:30]} 43. g5 {[%clk 0:00:18]}  g6 {[%clk 0:00:30]} 44. Kf4 {[%clk 0:00:18]}  Kg7 {[%clk 0:00:30]} 45. h4 {[%clk 0:00:18]}  Rbc5 {[%clk 0:00:26]} 46. Rb6 {[%clk 0:00:18]}  Ra7 {[%clk 0:00:24]} 47. h5 {[%clk 0:00:17]}  gxh5 {[%clk 0:00:24]} 48. Kg3 {[%clk 0:00:18]}  a4 {[%clk 0:00:23]} 49. Rb2 {[%clk 0:00:18]}  a3 {[%clk 0:00:23]} 50. Ra2 {[%clk 0:00:18]}  Rb5 {[%clk 0:00:23]} 51. f4 {[%clk 0:00:18]}  Rb2 {[%clk 0:00:23]} 52. Ra1 {[%clk 0:00:18]}  a2 {[%clk 0:00:23]} 53. f5 {[%clk 0:00:19]}  Ra3+ {[%clk 0:00:22]} 54. Kf4 {[%clk 0:00:19]}  f6 {[%clk 0:00:20]} 55. gxf6+ {[%clk 0:00:19]}  Kxf6 {[%clk 0:00:17]} 56. e5+ {[%clk 0:00:20]}  Ke7 {[%clk 0:00:15]} 57. f6+ {[%clk 0:00:21]}  Kd7 {[%clk 0:00:15]} 58. e6+ {[%clk 0:00:21]}  Kd6 {[%clk 0:00:15]} 59. e7 {[%clk 0:00:21]}  Re2 {[%clk 0:00:14]} 60. Bf7 {[%clk 0:00:21]}  Ra8 {[%clk 0:00:09]} 61. Rxa2 {[%clk 0:00:20]}  Rexa2 {[%clk 0:00:09]} 62. Bxa2 {[%clk 0:00:21]}  Kd7 {[%clk 0:00:08]} 63. Bf7 {[%clk 0:00:21]}  h4 {[%clk 0:00:08]} 64. Kg4 {[%clk 0:00:21]}  Ra4+ {[%clk 0:00:07]} 65. Kh3 {[%clk 0:00:21]}  Ra8 {[%clk 0:00:07]} 66. Kxh4 {[%clk 0:00:22]}  Rb8 {[%clk 0:00:06]} 67. Kg5 {[%clk 0:00:22]}  Ra8 {[%clk 0:00:06]} 68. Kg6 {[%clk 0:00:23]}  Rb8 {[%clk 0:00:06]} 69. e8=Q+ {[%clk 0:00:23]} 1-0


[Site "https://www.chess.com"]